bitfinex/quotes_ETHUSD_20220113
["timestamp","ask_amount","ask_price","bid_price","bid_amount"]
[1642093655833,0.00113685,3291.9,3291.8,1.08476101]
[1642093656633,0.00113685,3291.9,3291.8,1.11938368]
[1642093656830,0.00113685,3291.9,3291.8,1.12436346]
[1642093657031,1.1647,3292.4,3291.8,1.08476101]
[1642093657231,1.1647,3292.4,3291.8,1.42220114]
[1642093657431,1.1647,3292.4,3292.2,0.6073]
[1642093657631,4.6133,3292.5,3292.2,0.6073]
[1642093658034,0.00284212,3292.4,3292.2,0.9713]
[1642093658286,0.00284212,3292.4,3292.3,3.85365]
[1642093658489,4.6133,3292.5,3292.3,3.85365]
[1642093658686,0.00284212,3292.4,3292.3,0.24098148]
[1642093658887,0.00284212,3292.4,3292.3,0.80804872]
[1642093659387,0.00284212,3292.4,3292.3,0.84732922]
[1642093662219,0.00284212,3292.4,3292.3,0.80804872]
[1642093663021,0.00284212,3292.4,3292.3,0.20365]
[1642093663222,0.00284212,3292.4,3291.5,0.00113684]
[1642093663529,0.00227369,3292.3,3291.2,0.00397897]
[1642093663920,0.75933,3291.9,3291.0,0.00511581]
[1642093664121,0.01245812,3291.6,3290.6,1.28761775]
[1642093664322,1.51894,3291.5,3290.6,0.03592606]
[1642093664521,1.52178212,3291.5,3290.7,0.00170527]
[1642093664721,4.86657369,3291.4,3290.7,0.00170527]
[1642093664920,4.86657369,3291.4,3290.9,0.30381]
[1642093665122,0.75949,3291.2,3290.9,0.30381]
[1642093665321,0.00170527,3291.3,3290.9,0.30381]
[1642093665768,0.00113684,3291.2,3290.9,0.30381]
[1642093666168,0.00170527,3291.3,3290.9,0.30381]
[1642093666567,4.8643,3291.4,3290.9,1.72459995]
[1642093666568,0.00113684,3291.2,3290.9,1.72459995]
[1642093666967,0.00170527,3291.3,3290.9,1.72368995]
[1642093667367,0.00113684,3291.2,3290.9,1.72448995]
[1642093667569,0.76054684,3291.2,3290.9,0.3037]
[1642093667867,0.76054684,3291.2,3290.9,0.3045]
[1642093667868,0.75941,3291.2,3290.9,0.3045]
[1642093669169,0.00170527,3291.3,3290.9,0.3045]
[1642093669613,0.00113684,3291.2,3290.9,0.3045]
[1642093670014,0.00170527,3291.3,3290.9,0.3045]
[1642093670415,0.00113684,3291.2,3290.9,0.3045]
[1642093670617,0.76055684,3291.2,3290.9,0.3045]
[1642093670816,0.75942,3291.2,3290.9,0.3045]
[1642093671717,0.75942,3291.2,3290.9,0.0016]
[1642093671918,0.00170527,3291.3,3291.0,0.3038]
[1642093672315,0.00113684,3291.2,3291.0,0.3038]
[1642093672715,0.75936,3291.5,3291.0,0.3038]
[1642093672716,0.00227369,3291.4,3291.0,1.68998453]
[1642093673167,0.00170527,3291.3,3291.0,2.42932775]
[1642093673366,0.00170527,3291.3,3291.0,2.46774717]
[1642093673566,0.00113684,3291.2,3291.0,2.42932775]
[1642093673766,0.00113684,3291.2,3291.0,2.46850533]
[1642093673969,0.00397896,3291.7,3291.0,2.12559315]
[1642093674169,0.75934,3291.5,3291.4,0.60746]
[1642093674370,3.85,3291.5,3291.4,6e-05]
[1642093674568,3.85284212,3291.5,3291.4,6e-05]
[1642093675168,3.85284212,3291.5,3291.4,0.60752]
[1642093675169,0.00284212,3291.5,3291.4,0.60752]
[1642093677414,0.00284212,3291.5,3291.4,1.21801183]
[1642093677613,2.61026849,3291.7,3291.5,5.85]
[1642093677814,2.61026849,3291.7,3291.6,4.46765]
[1642093678016,2.61026849,3291.7,3291.6,4.50089543]
[1642093678214,2.61140533,3291.7,3291.6,5.75912373]
[1642093678414,2.61140533,3291.7,3291.6,1.95912373]
[1642093679217,0.00113684,3291.7,3291.6,1.95912373]
[1642093680315,4.7771,3292.6,3291.7,6.25]
[1642093680517,4.7771,3292.6,3292.4,0.30361]
[1642093680771,4.7771,3292.6,3292.4,1.69754791]
[1642093681672,11.6334,3293.0,3292.8,0.55669091]
[1642093681875,4.753,3293.1,3292.8,0.86026091]
[1642093682070,4.753,3293.1,3292.8,0.30357]
[1642093682071,2.60682108,3292.9,3292.8,0.30357]
[1642093683071,2.60682108,3292.9,3292.7,0.60714]
[1642093683472,2.30625266,3292.8,3292.7,0.60714]
[1642093683874,2.30738951,3292.8,3292.7,0.60714]
[1642093684174,0.00738951,3292.8,3292.7,0.60714]
[1642093685916,0.00738951,3292.8,3292.7,0.6386187]
[1642093686117,0.00738951,3292.8,3292.7,3.4386187]
[1642093686418,8.51188423,3293.6,3293.0,0.60703]
[1642093686627,8.51188423,3293.6,3293.1,0.98877963]
[1642093686816,0.00227369,3293.4,3293.3,0.3035]
[1642093687020,0.00227369,3293.4,3293.3,0.69991678]
[1642093689470,2.60868162,3293.9,3293.3,0.69991678]
[1642093689674,2.60868162,3293.9,3293.8,4.50345]
[1642093689874,2.60868162,3293.9,3293.8,4.89816829]
[1642093690371,3.91302243,3294.3,3293.9,5.39326789]
[1642093690571,3.91302243,3294.3,3294.0,0.364]
[1642093690873,4.734,3294.6,3294.0,0.364]
[1642093690874,0.00454739,3294.2,3294.0,0.364]
[1642093691271,4.734,3294.6,3294.1,4.43573896]
[1642093691473,0.13252,3294.4,3294.2,0.364]
[1642093691675,0.00511581,3294.3,3294.2,0.364]
[1642093691937,6.2,3294.9,3294.2,3.31271101]
[1642093691938,6.20852635,3294.9,3294.2,3.31271101]
[1642093692140,2.28034723,3295.4,3294.6,6.25]
[1642093692341,2.28034723,3295.4,3294.8,0.54362456]
[1642093692542,2.28034723,3295.7,3295.0,6.25]
[1642093692743,2.28034723,3295.7,3295.5,0.54117498]
[1642093693039,2.28034723,3295.7,3294.9,0.1152]
[1642093693040,2.28034723,3295.7,3295.6,0.364]
[1642093693341,2.28034723,3295.7,3295.3,0.364]
[1642093693545,2.28318935,3295.7,3295.5,0.07583]
[1642093694442,0.00284212,3295.7,3295.5,0.07583]
[1642093695042,0.00284212,3295.7,3295.3,0.51566]
[1642093695247,0.00284212,3295.7,3295.3,0.15166]
[1642093695867,0.00284212,3295.7,3295.1,0.15168]
[1642093696068,1.35154724,3295.7,3295.1,0.15168]
[1642093696468,1.35154724,3295.7,3294.4,5.7738]
[1642093696469,1.35154724,3295.7,3294.5,0.364]
[1642093696671,0.01232989,3295.4,3293.6,0.4968]
[1642093696870,0.01232989,3295.4,3294.6,0.00170527]
[1642093697070,0.0022737,3295.3,3294.6,0.00170527]
[1642093697270,0.75867,3295.0,3294.6,0.00170527]
[1642093697571,8.1302,3294.9,3294.1,0.07587]
[1642093697769,8.1302,3294.9,3293.9,0.00568423]
[1642093697971,8.1302,3294.9,3294.2,0.00397896]
[1642093698170,8.1302,3294.9,3293.9,0.00568423]
[1642093698571,3.420602,3294.8,3293.9,0.00568423]
[1642093698770,9.1259,3294.9,3293.9,0.00568423]
[1642093698970,3.07442764,3294.7,3293.6,0.0073895]
[1642093699817,0.75877,3294.5,3293.6,0.0073895]
[1642093700017,0.75901,3294.1,3293.6,0.0073895]
[1642093700230,2.81688201,3294.0,3293.6,0.0073895]
[1642093700818,1.40024677,3293.9,3293.4,0.00852635]
[1642093701118,1.518,3293.9,3293.4,0.00852635]
[1642093701317,1.1807,3294.3,3293.4,0.00852635]
[1642093702120,5.2878,3294.4,3293.9,0.51016386]
[1642093702518,5.2878,3294.4,3294.0,0.00511581]
[1642093703194,5.2878,3294.4,3293.9,0.46527967]
[1642093703383,0.00170527,3294.3,3293.9,0.46527967]
[1642093703782,0.00113685,3294.2,3293.9,0.46527967]
[1642093704181,0.00170527,3294.3,3293.9,0.46527967]
[1642093704382,0.00170527,3294.3,3294.0,0.64070734]
[1642093704582,0.00113685,3294.2,3294.0,0.64070734]
[1642093704781,0.00113685,3294.2,3294.1,3.74242734]
[1642093704982,5.2878,3294.4,3294.1,3.77779483]
[1642093704983,0.00170527,3294.3,3294.1,3.77779483]
[1642093705182,0.00113685,3294.2,3294.1,0.82779483]
[1642093706183,9.72003346,3296.4,3294.3,0.67811511]
[1642093706184,9.3774,3295.2,3294.3,0.67811511]
[1642093706382,9.3774,3295.2,3294.5,0.67144294]
[1642093706383,11.7177,3295.2,3294.5,0.67144294]
[1642093706582,0.00511581,3295.1,3294.5,0.67144294]
[1642093707017,0.00454739,3295.0,3294.5,0.67144294]
[1642093707420,0.00397896,3294.9,3294.6,0.1517]
[1642093707819,0.00341054,3294.8,3294.6,0.1517]
[1642093708222,0.00284212,3294.7,3294.6,0.1517]
[1642093709824,3.05284212,3294.7,3294.6,0.1517]
[1642093710023,0.00284212,3294.7,3294.6,0.1517]
[1642093710423,0.00284212,3294.7,3294.6,0.79240734]
[1642093711071,0.00284212,3294.7,3294.6,0.82499771]
[1642093711268,0.00284212,3294.7,3294.6,0.79240734]
[1642093711468,0.00284212,3294.7,3294.6,0.8308238]
[1642093711672,0.00284212,3294.7,3294.6,0.79240734]
[1642093711868,0.00284212,3294.7,3294.6,0.82302979]
[1642093712070,0.00284212,3294.7,3294.6,0.79240734]
[1642093712269,0.00064212,3294.7,3294.6,0.79240734]
[1642093715239,5.1693,3295.2,3294.8,0.64070734]
[1642093715439,5.1693,3295.2,3294.9,0.16394857]
[1642093715639,0.00227369,3295.1,3294.9,0.16394857]
[1642093715839,0.00227369,3295.1,3294.9,0.51567]
[1642093716042,5.1693,3295.2,3295.0,0.64070734]
[1642093716239,5.1693,3295.2,3295.0,1.15051234]
[1642093716439,0.00227369,3295.1,3295.0,1.22635234]
[1642093716739,5.1693,3295.2,3295.0,7.02779245]
[1642093716939,5.1693,3295.2,3295.1,6.89070734]
[1642093717139,3.9916,3296.0,3295.1,6.89070734]
[1642093717140,5.3112,3295.7,3295.1,7.28475611]
[1642093717340,5.3112,3295.7,3295.6,0.07582]
[1642093717540,5.31461054,3295.7,3295.6,0.07582]
[1642093717740,5.31461054,3295.7,3295.6,2.69405733]
[1642093717941,5.31461054,3295.7,3295.6,2.7306211]
[1642093718168,6.4246,3296.1,3295.8,0.64070734]
[1642093718369,6.8561,3296.8,3296.0,0.64070734]
[1642093718571,1.2482,3296.9,3296.5,0.07581]
[1642093718968,0.00625266,3296.8,3296.5,0.07581]
[1642093719367,0.76371424,3296.7,3296.5,0.07581]
[1642093719768,0.00511581,3296.6,3296.5,0.07581]
[1642093721369,0.00511581,3296.6,3296.4,0.79232734]
[1642093721769,0.00454739,3296.5,3296.4,0.79232734]
[1642093724034,0.00454739,3296.5,3296.4,0.82951868]
[1642093724636,0.00454739,3296.5,3296.4,5.14351868]
[1642093724838,11.58758,3297.1,3296.7,0.07579]
[1642093724839,10.8296,3297.1,3296.7,0.07579]
[1642093725036,10.8296,3297.1,3296.9,0.64070734]
[1642093725037,3.997,3297.1,3296.9,0.64070734]
[1642093725236,3.7843,3297.2,3296.9,0.64070734]
[1642093725237,0.00284212,3297.0,3296.9,0.79228734]
[1642093725773,0.00454739,3297.3,3296.9,1.28242512]
[1642093726173,0.00397896,3297.2,3296.9,1.28242512]
[1642093726672,0.00341054,3297.1,3296.9,1.28242512]
[1642093727073,0.00397896,3297.2,3296.9,1.28242512]
[1642093727473,0.00341054,3297.1,3296.9,1.28242512]
[1642093727874,0.7579,3297.3,3297.0,1.00470734]
[1642093727875,0.00397896,3297.2,3297.0,1.00470734]
[1642093728277,0.00341054,3297.1,3297.0,1.00470734]
[1642093728975,0.7579,3297.3,3297.0,1.00470734]
[1642093728976,0.71131054,3297.3,3297.0,1.00470734]
[1642093730424,7.62573,3297.6,3297.2,0.07579]
[1642093730823,0.00113685,3297.3,3297.2,0.71649734]
[1642093733181,0.00113685,3297.3,3297.2,0.75252914]
[1642093733569,2.60609411,3297.5,3297.4,3.29070734]
[1642093733770,2.60609411,3297.5,3297.4,4.08300734]
[1642093734081,2.60723095,3297.5,3297.4,1.43300734]
[1642093734273,0.989417,3297.7,3297.6,0.64070734]
[1642093734470,0.989417,3297.7,3297.6,1.64327545]
[1642093734671,0.99055385,3297.7,3297.6,2.95557688]
[1642093735672,3.6346,3298.1,3297.8,0.64070734]
[1642093735872,1.197,3298.3,3298.1,0.07577]
[1642093736075,3.6583,3298.5,3298.1,0.07577]
[1642093736272,1.46295262,3298.9,3298.4,0.03663198]
[1642093736473,1.46295262,3298.9,3298.6,1.48910805]
[1642093736774,1.46295262,3298.9,3298.7,0.64070734]
[1642093737018,1.46295262,3298.9,3298.8,1.15329229]
[1642093737419,1.4697737,3298.9,3298.8,1.51729229]
[1642093737619,0.00682108,3298.9,3298.8,1.51729229]
[1642093737819,0.00682108,3298.9,3298.8,1.00470734]
[1642093738818,2.45682108,3298.9,3298.8,0.66040734]
[1642093739019,5.15682108,3298.9,3298.8,0.45710734]
[1642093739219,9.06073956,3298.9,3298.4,0.07577]
[1642093739435,9.06073956,3298.9,3298.0,0.15154]
[1642093739623,0.00625266,3298.8,3298.0,0.15154]
[1642093740020,0.00568423,3298.7,3298.0,0.15154]
[1642093740422,0.00511581,3298.6,3298.0,0.15154]
[1642093740886,0.00454739,3298.5,3298.0,0.15154]
[1642093741186,0.00397896,3298.4,3298.0,0.15154]
[1642093741586,0.00341054,3298.3,3298.0,0.15154]
[1642093741989,0.00284212,3298.2,3298.0,0.15154]
[1642093742387,0.00227369,3298.1,3298.0,0.15154]
[1642093742588,0.00227369,3298.1,3298.0,3.45154]
[1642093742789,0.00568423,3298.1,3298.0,3.45154]
[1642093742988,0.00568423,3298.1,3298.0,3.48371484]
[1642093743189,1.5151,3298.9,3298.1,4.55]
[1642093743489,10.7789147,3299.3,3298.1,4.55]
[1642093743490,8.9923,3299.3,3298.1,4.58412169]
[1642093743890,0.00170527,3299.0,3298.2,3.03579976]
[1642093744089,0.00170527,3299.0,3298.3,0.364]
[1642093744291,8.9923,3299.3,3299.2,2.12195364]
[1642093744525,0.75733,3299.6,3299.2,2.12195364]
[1642093745129,0.75733,3299.6,3299.2,1.97145364]
[1642093745523,0.75733,3299.6,3299.2,1.57625364]
[1642093745922,0.75733,3299.6,3299.2,1.60841432]
[1642093746122,0.75733,3299.6,3299.2,1.57625364]
[1642093746525,0.75733,3299.6,3299.2,1.61097989]
[1642093746823,0.75727,3299.8,3299.2,1.60945646]
[1642093747026,0.75727,3299.8,3299.3,0.364]
[1642093747222,10.826,3299.9,3299.3,0.364]
[1642093747223,10.826,3299.9,3299.4,0.01231711]
[1642093747423,10.826,3299.9,3299.5,0.364]
[1642093747723,0.00113684,3299.8,3299.5,0.364]
[1642093748770,10.826,3299.9,3299.5,0.364]
[1642093748970,10.826,3299.9,3299.8,7.498]
[1642093749171,1.151,3300.2,3299.8,15.39942318]
[1642093749377,4.45387,3300.3,3299.9,0.04327852]
[1642093749574,0.00170527,3300.1,3299.9,0.61701706]
[1642093749773,0.00170527,3300.1,3299.8,15.365]
[1642093750074,4.01245511,3299.9,3299.8,14.6666]
[1642093750274,0.01245511,3299.9,3299.8,14.6666]
[1642093750474,0.00113685,3300.0,3299.8,14.6666]
[1642093751275,0.00113685,3300.0,3299.8,14.2752]
[1642093752336,0.00113685,3300.0,3299.8,13.8682]
[1642093752634,0.00113685,3300.0,3299.8,13.7942]
[1642093754338,0.00113685,3300.0,3299.8,13.6494]
[1642093754539,0.00113685,3300.0,3299.9,1.3784969]
[1642093754939,0.00113685,3300.0,3299.9,1.93848288]
[1642093755339,0.00113685,3300.0,3299.9,1.87368288]
[1642093755772,0.00113685,3300.0,3299.9,1.35528288]
[1642093756671,0.00113685,3300.0,3299.9,0.6008969]
[1642093756878,2.55113685,3300.0,3299.9,0.3092969]
[1642093757071,0.00113685,3300.0,3299.9,0.3092969]
[1642093758278,0.00113685,3300.0,3299.9,0.2444969]
[1642093758477,0.00113685,3300.0,3299.8,12.99844491]
[1642093758676,0.00113685,3300.0,3299.9,1.7881536]
[1642093758875,4.933617,3300.6,3299.9,2.4506536]
[1642093759276,0.00170527,3300.3,3299.9,2.4506536]
[1642093759724,0.00113685,3300.2,3299.9,2.4506536]
[1642093759927,0.989417,3300.6,3300.0,4.9]
[1642093760124,0.00170527,3300.5,3300.1,0.364]
[1642093760526,0.989417,3300.6,3300.2,4.9]
[1642093760726,0.989417,3300.6,3300.4,2.13874303]
[1642093760925,0.989417,3300.6,3300.5,6.264]
[1642093761125,4.66299513,3301.4,3300.5,6.30106523]
[1642093761325,0.00113685,3300.6,3300.5,6.30106523]
[1642093761526,3.90609513,3301.4,3300.6,6.25]
[1642093761725,3.90609513,3301.4,3300.7,0.364]
[1642093761927,0.00397896,3301.3,3300.7,0.364]
[1642093762326,0.00341054,3301.2,3300.7,0.364]
[1642093762529,0.00341054,3301.2,3300.8,0.44282253]
[1642093762726,0.00284212,3301.1,3300.9,0.364]
[1642093763176,0.75691,3301.4,3300.9,0.364]
[1642093763572,0.75691,3301.4,3301.0,1.22475378]
[1642093763773,0.75691,3301.4,3301.1,0.364]
[1642093765875,0.76083897,3301.7,3301.1,0.364]
[1642093766075,0.76083897,3301.7,3301.6,1.18083794]
[1642093766375,0.75686,3301.7,3301.6,1.18083794]
[1642093767524,3.3603387,3301.7,3301.6,1.18083794]
[1642093768323,0.75686,3301.7,3301.6,1.18083794]
[1642093769436,0.7568,3301.9,3301.6,1.18083794]
[1642093770025,2.60341522,3301.7,3301.6,1.18083794]
[1642093770429,2.60739419,3301.7,3301.6,1.18083794]
[1642093770685,0.00397897,3301.7,3301.6,1.18083794]
[1642093773683,0.00397897,3301.7,3301.5,1.43373891]
[1642093774084,0.00341054,3301.6,3301.5,1.43373891]
[1642093775326,0.00341054,3301.6,3301.5,1.33743891]
[1642093775327,2.40341054,3301.6,3301.5,1.33743891]
[1642093775529,2.40341054,3301.6,3301.5,1.08063891]
[1642093776127,0.00341054,3301.6,3301.5,1.08063891]
[1642093777428,0.00341054,3301.6,3301.5,1.04783891]
[1642093779372,0.00341054,3301.6,3301.5,1.01633891]
[1642093779673,0.66028054,3301.8,3301.5,1.01633891]
[1642093780275,3.932,3302.1,3301.6,0.66089898]
[1642093780475,2.60336174,3301.7,3301.6,0.70430908]
[1642093780676,0.32286888,3301.7,3301.6,6.94815525]
[1642093780873,3.9050426,3302.3,3301.7,6.25]
[1642093781074,3.9050426,3302.3,3301.8,0.364]
[1642093781275,3.9050426,3302.3,3302.2,1.59449166]
[1642093781477,3.9050426,3302.3,3302.2,0.3640617]
[1642093781675,3.90788472,3302.3,3302.2,0.364]
[1642093781927,3.0,3302.2,3301.6,0.29803583]
[1642093782125,6.25,3302.1,3300.9,13.0923]
[1642093782323,6.25,3302.1,3301.1,3.5]
[1642093782324,0.01264325,3301.5,3301.1,3.5]
[1642093782525,0.01264325,3301.5,3301.2,1.33727431]
[1642093782923,0.01264325,3301.5,3301.3,0.00170527]
[1642093783124,0.01264325,3301.5,3301.4,0.6141833]
[1642093783328,0.0022737,3302.0,3301.4,0.6141833]
[1642093783524,0.0022737,3302.0,3301.4,0.61532014]
[1642093783723,0.00170528,3301.9,3301.4,0.61532014]
[1642093784125,0.00113685,3301.8,3301.7,1.3511936]
[1642093784524,0.0022737,3301.8,3301.7,1.3511936]
[1642093785025,0.0022737,3301.8,3301.4,0.61532014]
[1642093786277,0.7569,3301.7,3301.4,0.00113684]
[1642093786578,2.79433149,3301.6,3301.4,0.00113684]
[1642093786776,3.60593149,3301.6,3301.4,0.00113684]
[1642093786976,8.53154593,3301.5,3301.4,0.00113684]
[1642093787178,5.7,3301.5,3301.4,0.00113684]
[1642093788480,6.25,3301.4,3300.9,3.684e-05]
[1642093788677,6.26223534,3301.0,3300.9,3.684e-05]
[1642093788878,6.25,3300.9,3300.0,3.5]
[1642093789078,3.22952323,3300.8,3300.0,3.5]
[1642093789277,3.22952323,3300.8,3299.8,5.49544491]
[1642093789722,3.22952323,3300.8,3300.0,0.00795793]
[1642093789922,3.22952323,3300.8,3299.9,0.00852635]
[1642093790125,0.75729,3300.7,3299.9,1.48740887]
[1642093790325,2.7561258,3300.6,3299.9,0.00852635]
[1642093791126,3.5134158,3300.6,3299.9,0.00852635]
[1642093792325,2.2720027,3300.4,3299.9,0.00852635]
[1642093792526,3.0293627,3300.4,3299.9,0.00852635]
[1642093793775,0.75717,3300.6,3299.9,0.00852635]
[1642093794572,0.75717,3300.6,3300.1,1.49132038]
[1642093795073,0.75717,3300.6,3300.2,0.00682108]
[1642093796174,1.2477,3300.8,3300.2,0.57459252]
[1642093796574,1.1977,3300.8,3300.6,1.47968557]
[1642093796775,4.8411,3300.9,3300.6,1.47968557]
[1642093797027,0.01223534,3301.0,3300.7,0.00397897]
[1642093798629,1.51428,3301.1,3300.8,0.47364731]
[1642093798828,0.75713,3301.2,3300.8,0.47364731]
[1642093799033,0.75713,3301.2,3300.9,0.00284212]
[1642093799232,0.7694158,3301.2,3300.9,0.00284212]
[1642093799431,0.7694158,3301.2,3300.7,0.00397897]
[1642093800331,0.75713,3301.2,3301.0,0.58375939]
[1642093800779,0.75713,3301.2,3301.1,0.00170527]
[1642093801384,1.1515,3301.4,3301.1,0.00170527]
[1642093801591,1.1515,3301.4,3301.0,0.48186466]
[1642093801781,1.1515,3301.4,3301.1,0.4172162]
[1642093801782,2.60363191,3301.2,3301.1,0.4172162]
[1642093802184,2.60363191,3301.2,3301.1,1.89803923]
[1642093802981,0.00113684,3301.3,3301.1,1.89803923]
[1642093808393,4.8943,3301.8,3301.2,5.25]
[1642093808592,0.04502105,3302.5,3301.2,5.25]
[1642093808593,0.04502105,3302.5,3301.3,0.364]
[1642093808792,0.0022737,3301.7,3301.3,0.364]
[1642093808994,0.04502105,3302.5,3301.3,0.364]
[1642093809193,0.04502105,3302.5,3301.9,0.49319542]
[1642093809398,0.00227369,3302.1,3302.0,1.4669541]
[1642093809795,0.75683,3302.2,3302.0,1.4669541]
[1642093810595,0.75683,3302.2,3302.0,1.92298048]
[1642093810996,2.60281932,3302.1,3302.0,1.92298048]
[1642093811797,0.00397896,3302.4,3302.0,1.92298048]
[1642093812222,0.00341054,3302.3,3302.0,1.92298048]
[1642093812622,0.00284212,3302.2,3302.0,1.92298048]
[1642093813021,0.00454739,3302.5,3302.0,1.92298048]
[1642093813421,0.00397896,3302.4,3302.0,1.92298048]
[1642093813823,0.00341054,3302.3,3302.0,1.92298048]
[1642093814223,0.00284212,3302.2,3302.0,1.4669541]
[1642093814424,0.00284212,3302.2,3301.4,0.00170527]
[1642093814627,2.74500613,3302.4,3301.4,0.00170527]
[1642093815025,2.74500613,3302.4,3301.0,0.364]
[1642093815026,0.00341054,3302.3,3301.1,0.00341054]
[1642093815224,0.03755621,3302.2,3301.1,0.00341054]
[1642093815425,0.00284212,3302.2,3301.5,1.14203617]
[1642093815686,0.00284212,3302.2,3301.3,0.44275427]
[1642093816073,0.00284212,3302.2,3300.7,0.00568424]
[1642093816275,0.7569235,3302.1,3300.7,0.00568424]
[1642093816472,3.22171801,3302.0,3300.5,3.50682108]
[1642093816672,3.22171801,3302.0,3300.5,0.00682108]
[1642093816673,3.22342328,3302.0,3300.5,0.00682108]
[1642093816873,3.22342328,3302.0,3300.2,0.364]
[1642093816874,4.55223685,3301.9,3300.6,0.00625266]
[1642093817073,2.89134479,3301.8,3300.5,0.00682108]
[1642093817376,2.89134479,3301.8,3301.2,1.19388284]
[1642093817377,0.75709,3301.7,3301.2,1.19388284]
[1642093817573,0.75709,3301.7,3301.4,0.47369877]
[1642093817774,0.7570677,3301.6,3301.4,0.47369877]
[1642093817973,0.7570677,3301.6,3301.2,1.19388284]
[1642093817974,0.7570677,3301.6,3301.5,0.00113685]
[1642093818375,0.7570677,3301.6,3301.3,0.0022737]
[1642093818576,0.7571,3301.5,3301.3,0.0022737]
[1642093821523,2.2713708,3301.5,3301.3,0.0022737]
[1642093821723,0.7571433,3301.1,3300.5,0.00682108]
[1642093821926,0.7571433,3301.1,3300.1,0.44751907]
[1642093821927,2.69961928,3301.0,3300.3,0.00795793]
[1642093822324,1.13546894,3300.7,3300.2,0.00852635]
[1642093822527,1.13546894,3300.7,3299.9,3.51023162]
[1642093822528,1.5150283,3300.4,3299.9,3.51023162]
[1642093822724,1.5150283,3300.4,3300.0,0.0096632]
[1642093822725,2.85893892,3300.3,3300.0,0.0096632]
[1642093823181,2.85893892,3300.3,3299.9,0.01023162]
[1642093823575,1.28808976,3300.0,3298.8,1.35314914]
[1642093823876,0.7575608,3299.5,3298.9,0.00568424]
[1642093824075,0.6666,3299.5,3298.9,0.00568424]
[1642093824274,2.76089679,3299.4,3298.9,0.00568424]
[1642093824475,2.76089679,3299.4,3298.4,0.46122021]
[1642093824476,2.75235719,3299.4,3298.5,0.00795793]
[1642093825081,0.03874868,3299.1,3298.5,0.00795793]
[1642093825277,3.56998657,3299.1,3298.5,0.00795793]
[1642093825476,3.56998657,3299.1,3298.3,0.00909478]
[1642093825676,3.56998657,3299.1,3298.2,0.0096632]
[1642093826277,0.7577882,3298.9,3298.2,0.0096632]
[1642093826477,1.44718287,3298.6,3298.2,0.0096632]
[1642093826677,0.9364,3298.6,3298.2,0.0096632]
[1642093826922,2.79121726,3298.5,3298.2,0.0096632]
[1642093827124,2.79121726,3298.5,3297.9,0.121154]
[1642093827125,5.95,3298.4,3297.9,0.121154]
[1642093827325,2.8637211,3298.3,3297.9,0.121154]
[1642093827525,2.8637211,3298.3,3298.0,0.00113685]
[1642093827729,0.75798,3298.2,3298.0,0.00113685]
[1642093828025,4.32307926,3298.2,3298.0,0.00113685]
[1642093828225,1.51585,3298.2,3298.0,0.00113685]
[1642093828524,2.74404123,3298.1,3298.0,0.00113685]
[1642093828726,1.51585,3298.2,3298.0,0.00113685]
[1642093828924,1.51585,3298.2,3298.1,0.001]
[1642093830983,6.5811987,3298.2,3298.1,0.001]
[1642093831185,1.51585,3298.2,3298.1,0.001]
[1642093833183,8.16352914,3298.2,3298.1,0.001]
[1642093833586,10.51352914,3298.2,3298.1,0.001]
[1642093833783,6.2,3298.1,3296.9,3.9311]
[1642093833984,0.7581,3297.9,3296.9,3.9311]
[1642093834183,4.43391222,3297.8,3297.0,0.00568423]
[1642093834430,2.98762822,3297.8,3297.0,0.00568423]
[1642093834829,0.7580941,3297.6,3296.8,0.44397811]
[1642093835028,0.7580941,3297.6,3296.9,0.00625266]
[1642093835635,1.5161241,3297.6,3296.9,0.00625266]
[1642093835831,0.7580858,3297.4,3296.9,0.00625266]
[1642093836233,2.2742015,3297.7,3296.9,0.00625266]
[1642093836432,2.76965955,3297.6,3296.8,0.00682108]
[1642093836634,2.2742015,3297.7,3296.8,0.00682108]
[1642093837232,2.2742212,3297.6,3296.8,0.00682108]
[1642093837633,0.75802,3297.6,3296.8,0.00682108]
[1642093837832,1.2314,3297.9,3296.8,0.00682108]
[1642093838473,1.2314,3297.9,3297.7,1.15181361]
[1642093838675,7.72282,3298.1,3297.7,1.15181361]
[1642093838676,0.75784,3298.0,3297.7,1.15181361]
[1642093838873,0.75784,3298.0,3297.8,0.00113685]
[1642093839073,1.51575,3298.0,3297.8,0.00113685]
[1642093839474,0.00113684,3298.2,3297.8,0.00113685]
[1642093840275,0.00113684,3298.2,3298.0,0.47323846]
[1642093841479,0.00113684,3298.2,3297.8,0.00113685]
[1642093842125,0.75892684,3298.2,3297.8,0.00113685]
[1642093842327,0.75892684,3298.2,3297.7,0.00170527]
[1642093842525,0.75892684,3298.2,3296.8,0.00682108]
[1642093843126,3.03295684,3298.2,3297.2,1.49828655]
[1642093843529,3.03295684,3298.2,3297.3,0.00397896]
[1642093843726,0.7580079,3298.0,3297.4,0.59775533]
[1642093843927,1.5159479,3298.0,3297.4,0.59775533]
[1642093844127,2.27382,3297.8,3297.5,0.00284212]
[1642093845027,0.75794,3297.7,3297.5,0.00284212]
[1642093845426,0.75794,3297.7,3296.7,0.364]
[1642093845427,0.75794,3297.7,3297.3,0.00397896]
[1642093845682,3.49831677,3297.7,3296.8,0.00682108]
[1642093845876,8.18801677,3297.7,3296.8,0.00682108]
[1642093846179,8.98551677,3297.7,3296.6,0.46033154]
[1642093846580,8.98551677,3297.7,3296.7,0.0073895]
[1642093846977,8.98551677,3297.7,3296.7,1.43312289]
[1642093847180,8.98551677,3297.7,3296.7,0.0073895]
[1642093847378,0.04505141,3297.5,3296.8,0.00682108]
[1642093847578,2.92389837,3297.5,3296.7,0.0073895]
[1642093848479,2.92389837,3297.5,3296.7,1.26340426]
[1642093848879,2.92389837,3297.5,3296.8,0.00682108]
[1642093849080,6.9638311,3297.7,3296.8,0.00682108]
[1642093849081,9.79754875,3297.7,3296.8,0.00682108]
[1642093849283,0.7581063,3297.4,3296.8,0.00682108]
[1642093849532,1.51605,3297.6,3296.8,0.00682108]
[1642093850733,0.7579996,3297.5,3296.8,0.00682108]
[1642093853577,3.49091438,3297.5,3296.8,0.00682108]
[1642093853879,3.49091438,3297.5,3296.7,0.0073895]
[1642093854878,4.67319053,3297.5,3296.7,0.0073895]
[1642093855680,2.2748661,3297.3,3296.5,0.00852635]
[1642093855879,3.12014498,3297.2,3296.5,0.00852635]
[1642093856079,7.0083,3297.1,3295.4,5.9998]
[1642093856279,1.13348591,3296.7,3295.8,0.55993755]
[1642093856584,3.24476662,3297.0,3295.8,0.55993755]
[1642093856780,3.08848512,3296.9,3295.6,1.47269559]